bitfinex/quotes_SOLUSD_20250722
["timestamp","ask_amount","ask_price","bid_price","bid_amount"]
[1753151319032,61.82551067,203.91,203.9,0.2]
[1753151320158,66.72963503,203.91,203.9,0.2]
[1753151320879,16.78468397,203.91,203.9,0.2]
[1753151321048,53.20468397,203.91,203.9,0.2]
[1753151321252,61.11551067,203.91,203.9,0.2]
[1753151321458,61.82551067,203.91,203.9,0.2]
[1753151322028,61.11551067,203.91,203.9,0.2]
[1753151322250,53.20468397,203.91,203.9,0.2]
[1753151322442,16.78468397,203.91,203.9,0.2]
[1753151322651,16.78468397,203.96,203.9,13.01519158]
[1753151322954,11.29856208,203.98,203.92,7.9108267]
[1753151322955,16.78468397,203.94,203.92,7.9108267]
[1753151323126,36.42,203.93,203.9,5.10436488]
[1753151323322,36.42,203.93,203.91,7.9108267]
[1753151323522,36.42,203.93,203.9,5.10436488]
[1753151323523,36.42,203.93,203.9,13.01519158]
[1753151324025,36.42,203.93,203.91,7.9108267]
[1753151324225,36.42,203.93,203.91,12.81485412]
[1753151324426,53.20468397,203.93,203.92,7.9108267]
[1753151324642,53.20468397,203.93,203.91,12.81485412]
[1753151325037,36.42,203.92,203.91,12.81485412]
[1753151325236,36.42,203.92,203.91,7.9108267]
[1753151326054,36.42,203.92,203.9,13.0151723]
[1753151326348,36.42,203.92,203.9,8.1108267]
[1753151326553,36.42,203.92,203.9,0.2]
[1753151326749,53.20468397,203.92,203.91,26.0]
[1753151327650,53.20468397,203.92,203.91,33.9108267]
[1753151327864,36.42,203.92,203.91,32.8708267]
[1753151328047,0.71,203.97,203.91,33.5808267]
[1753151328048,36.42,203.93,203.91,33.5808267]
[1753151328251,36.42,203.95,203.93,4.9036434]
[1753151328558,36.42,203.95,203.94,7.9108267]
[1753151329652,53.20468397,203.95,203.94,7.9108267]
[1753151330355,53.20468397,203.95,203.9,0.91]
[1753151330356,16.78468397,203.94,203.9,34.1108267]
[1753151330533,16.78468397,203.92,203.9,34.1108267]
[1753151330936,36.42,203.91,203.9,34.1108267]
[1753151331141,53.20468397,203.91,203.9,34.1108267]
[1753151331340,53.20468397,203.91,203.9,0.2]
[1753151331341,53.91468397,203.91,203.9,0.2]
[1753151332054,53.20468397,203.91,203.9,8.1108267]
[1753151332854,53.20468397,203.91,203.9,0.2]
[1753151333969,0.06,203.95,203.93,26.0]
[1753151334143,53.20468397,203.94,203.93,33.9108267]
[1753151334856,53.20468397,203.94,203.9,0.91]
[1753151334857,16.78468397,203.93,203.9,0.2]
[1753151335054,53.20468397,203.92,203.91,26.0]
[1753151336853,16.78468397,203.91,203.9,26.2]
[1753151337059,16.78468397,203.91,203.9,0.2]
[1753151337060,33.12491067,203.91,203.9,0.2]
[1753151337453,16.78468397,203.87,203.86,0.2]
[1753151337653,53.18468397,203.87,203.86,0.2]
[1753151337860,61.80551067,203.87,203.86,0.2]
[1753151338561,60.72005255,203.87,203.86,0.2]
[1753151338770,65.62513912,203.87,203.86,0.2]
[1753151339465,65.62513912,203.87,203.79,0.03]
[1753151339466,16.78468397,203.82,203.79,0.03]
[1753151339764,23.61005255,203.8,203.79,0.03]
[1753151340153,24.32005255,203.8,203.76,0.03]
[1753151340347,26.0,203.83,203.76,0.03]
[1753151340348,23.61005255,203.77,203.76,0.03]
[1753151340547,16.78468397,203.77,203.76,6.85536858]
[1753151340763,53.18468397,203.77,203.76,11.76310227]
[1753151340950,1.5786,203.84,203.79,26.0]
[1753151341155,36.4,203.84,203.82,6.82536858]
[1753151341460,24.32005255,203.83,203.81,26.0]
[1753151341661,16.78468397,203.81,203.76,0.03]
[1753151341871,43.93536858,203.82,203.77,26.0]
[1753151341872,16.78468397,203.79,203.77,26.0]
[1753151342066,16.78468397,203.77,203.76,0.03]
[1753151342244,23.61005255,203.77,203.76,0.03]
[1753151342449,32.03705255,203.77,203.71,0.03]
[1753151342649,23.61005255,203.72,203.71,0.03]
[1753151342850,64.93875076,203.72,203.71,0.03]
[1753151343163,65.64875076,203.72,203.71,0.03]
[1753151343749,16.78468397,203.71,203.7,0.2]
[1753151343948,24.32005255,203.71,203.7,0.2]
[1753151344141,17.49468397,203.71,203.7,0.2]
[1753151344342,24.43774499,203.71,203.7,0.2]
[1753151344744,24.43774499,203.71,203.7,7.14306102]
[1753151344745,36.4,203.71,203.7,7.14306102]
[1753151344945,7.717,203.77,203.7,7.14306102]
[1753151344946,0.71,203.93,203.78,16.78468397]
[1753151345178,6.4493,203.94,203.77,26.0]
[1753151345179,6.4493,203.94,203.9,6.94306102]
[1753151345352,6.4493,203.94,203.91,6.94306102]
[1753151345353,36.4,203.93,203.91,6.94306102]
[1753151345548,36.4,203.93,203.87,0.71]
[1753151345863,36.4,203.93,203.92,6.94306102]
[1753151346063,0.06,203.95,203.92,6.94306102]
[1753151346369,0.06,203.95,203.94,6.94306102]
[1753151346541,36.48,203.95,203.94,6.94306102]
[1753151346748,36.48,203.95,203.87,26.0]
[1753151347051,16.78468397,203.94,203.93,26.0]
[1753151348866,21.68811149,203.94,203.86,0.71]
[1753151349164,21.68811149,203.94,203.88,36.31529357]
[1753151349165,32.72340506,203.94,203.88,36.31529357]
[1753151349753,32.72340506,203.94,203.83,0.66]
[1753151349754,16.78468397,203.92,203.86,10.31529357]
[1753151350056,36.4,203.91,203.85,10.31529357]
[1753151350260,36.4,203.91,203.87,10.31529357]
[1753151350452,17.50468397,203.9,203.84,36.31529357]
[1753151350764,16.78468397,203.88,203.83,10.31529357]
[1753151350967,16.78468397,203.85,203.82,10.31529357]
[1753151351160,36.4,203.84,203.82,10.31529357]
[1753151351482,16.78468397,203.83,203.81,10.31529357]
[1753151351664,16.78468397,203.83,203.8,10.31529357]
[1753151352373,36.4,203.84,203.82,36.31529357]
[1753151352972,36.4,203.84,203.82,26.0]
[1753151353147,16.78468397,203.83,203.82,26.0]
[1753151353565,21.69073312,203.83,203.82,26.0]
[1753151354960,44.99114958,203.83,203.7,0.86]
[1753151355274,44.99114958,203.83,203.72,10.31529357]
[1753151355275,16.78468397,203.78,203.72,10.31529357]
[1753151355470,16.78468397,203.78,203.7,0.86]
[1753151355471,36.4,203.77,203.73,10.31529357]
[1753151355978,36.4,203.77,203.72,10.31529357]
[1753151355979,37.12,203.77,203.72,10.31529357]
[1753151356557,16.78468397,203.76,203.71,10.31529357]
[1753151356758,16.78468397,203.74,203.7,0.2]
[1753151356965,41.30867888,203.73,203.7,0.2]
[1753151357165,16.78468397,203.72,203.7,0.2]
[1753151357562,27.81997754,203.71,203.7,0.2]
[1753151358056,64.21997754,203.71,203.7,0.2]
[1753151358275,16.78468397,203.7,203.66,0.03]
[1753151358463,27.09997754,203.67,203.66,0.03]
[1753151358663,63.49997754,203.67,203.66,0.03]
[1753151358881,64.21997754,203.67,203.66,0.03]
[1753151359077,69.12988081,203.67,203.66,0.03]
[1753151359389,0.72,203.72,203.66,10.34529357]
[1753151359588,7.7498,203.74,203.68,10.31529357]
[1753151359589,53.18468397,203.71,203.68,10.31529357]
[1753151359749,53.18468397,203.71,203.66,0.03]
[1753151359750,16.78468397,203.69,203.66,0.03]
[1753151359955,16.78468397,203.67,203.66,0.03]
[1753151360985,21.69458724,203.67,203.66,0.03]
[1753151362159,32.72988081,203.67,203.66,0.03]
[1753151363856,21.69458724,203.67,203.66,0.03]
[1753151364076,10.31529357,203.72,203.66,10.34529357]
[1753151364267,20.74083311,203.74,203.66,10.34529357]
[1753151364268,16.78468397,203.7,203.66,10.34529357]
[1753151364582,36.42,203.69,203.66,0.03]
[1753151364767,16.78468397,203.68,203.66,0.03]
[1753151364972,53.20468397,203.67,203.66,0.03]
[1753151365488,0.72,203.7,203.66,0.03]
[1753151365489,44.28042128,203.72,203.66,10.34529357]
[1753151365687,46.73529357,203.71,203.68,26.0]
[1753151365991,47.45529357,203.71,203.66,0.03]
[1753151366162,16.78468397,203.69,203.66,0.03]
[1753151366469,36.42,203.68,203.66,0.03]
[1753151367292,21.69458724,203.67,203.66,0.03]
[1753151367795,41.32966237,203.68,203.66,0.03]
[1753151369486,12.27174553,203.72,203.67,7.60057297]
[1753151369487,16.78468397,203.72,203.67,7.60057297]
[1753151369672,36.42,203.71,203.69,6.94057297]
[1753151369873,36.42,203.7,203.69,6.94057297]
[1753151370981,36.42,203.7,203.68,6.94057297]
[1753151371283,36.42,203.7,203.69,26.0]
[1753151371461,41.32918016,203.7,203.69,26.0]
[1753151371863,41.32918016,203.7,203.66,32.97057297]
[1753151372071,36.42,203.7,203.67,6.94057297]
[1753151372270,41.32921783,203.7,203.67,6.94057297]
[1753151372670,36.42,203.7,203.68,6.94057297]
[1753151372870,41.32925985,203.7,203.68,6.94057297]
[1753151373168,42.04925985,203.7,203.66,26.03]
[1753151373365,36.42,203.7,203.68,6.94057297]
[1753151373669,53.20468397,203.7,203.69,0.03]
[1753151373867,58.11386413,203.7,203.69,0.03]
[1753151374483,58.11386413,203.7,203.69,0.03]
[1753151374681,1.5586,203.81,203.72,26.0]
[1753151374879,16.78468397,203.79,203.77,6.94057297]
[1753151375102,17.50468397,203.79,203.74,6.94057297]
[1753151375406,16.78468397,203.77,203.73,32.94057297]
[1753151375571,6.4653678,203.81,203.74,6.94057297]
[1753151375572,6.94057297,203.8,203.74,6.94057297]
[1753151375781,1.322383,203.82,203.79,6.94057297]
[1753151376083,37.722383,203.82,203.81,6.94057297]
[1753151377980,37.722383,203.82,203.81,7.60057297]
[1753151378177,37.722383,203.82,203.81,6.94057297]
[1753151378994,16.78468397,203.81,203.74,0.66]
[1753151379199,16.78468397,203.81,203.76,6.94057297]
[1753151379391,36.4,203.8,203.79,26.0]
[1753151379593,16.78468397,203.79,203.74,6.94057297]
[1753151379777,4.90725291,203.78,203.74,32.94057297]
[1753151379975,36.4,203.77,203.74,6.94057297]
[1753151380390,36.4,203.77,203.76,26.0]
[1753151380692,36.4,203.77,203.76,32.94057297]
[1753151380913,36.4,203.77,203.76,26.0]
[1753151381197,36.4,203.77,203.76,32.94057297]
[1753151381502,36.4,203.77,203.76,26.0]
[1753151381878,16.78468397,203.76,203.73,6.94057297]
[1753151382084,36.4,203.77,203.76,26.0]
[1753151382775,41.30750493,203.77,203.7,93.50909824]
[1753151382978,16.78468397,203.76,203.71,6.94057297]
[1753151383194,16.78468397,203.74,203.69,6.97057297]
[1753151383387,53.18468397,203.73,203.72,26.0]
[1753151383691,16.78468397,203.72,203.69,0.03]
[1753151383896,36.4,203.71,203.7,26.0]
[1753151384077,36.4,203.71,203.69,0.03]
[1753151384277,36.4,203.71,203.7,26.0]
[1753151384700,53.18468397,203.71,203.69,0.03]
[1753151384906,16.78468397,203.7,203.69,0.03]
[1753151385922,29.2944371,203.7,203.69,0.03]
[1753151387317,47.71048751,203.7,203.66,0.03]
[1753151387610,23.72525694,203.67,203.66,0.03]
[1753151387907,65.01516021,203.67,203.66,0.03]
[1753151388090,65.67516021,203.67,203.66,0.03]
[1753151390613,16.78468397,203.66,203.65,0.03]
[1753151390827,24.38525694,203.66,203.65,0.03]
[1753151391412,36.38,203.66,203.65,0.03]
[1753151391611,60.76525694,203.66,203.65,0.03]
[1753151391997,65.67540129,203.66,203.65,0.03]
[1753151393796,65.67540129,203.66,203.65,1e-08]
[1753151394600,16.78468397,203.65,203.64,1e-08]
[1753151394796,24.38525694,203.65,203.61,0.03]
[1753151394994,16.78468397,203.61,203.57,0.03]
[1753151395193,23.72525694,203.59,203.57,0.03]
[1753151395405,53.16468397,203.58,203.57,0.03]
[1753151395618,60.76525694,203.58,203.57,0.03]
[1753151396121,65.67733081,203.58,203.57,0.03]
[1753151396499,65.01733081,203.58,203.57,0.03]
[1753151396698,65.67733081,203.58,203.57,0.03]
[1753151397415,65.64448616,203.58,203.57,0.03]
[1753151397716,23.72525694,203.57,203.54,8.17006054]
[1753151397894,36.38,203.56,203.54,8.17006054]
[1753151398213,4.91279783,203.55,203.54,8.17006054]
[1753151398800,58.0774818,203.55,203.54,8.17006054]
[1753151399413,36.38,203.55,203.54,8.17006054]
[1753151399623,36.38,203.55,203.54,15.77063351]
[1753151400402,16.78468397,203.58,203.54,15.77063351]
[1753151400604,36.38,203.57,203.55,0.66]
[1753151400818,1.6178,203.67,203.59,26.0]
[1753151400995,4.90942117,203.69,203.66,6.94057297]
[1753151401195,6.94057297,203.67,203.55,0.612]
[1753151401411,6.94057297,203.63,203.57,26.66]
[1753151401612,16.78468397,203.61,203.57,26.66]
[1753151401818,36.38,203.6,203.58,0.66]
[1753151402031,36.38,203.59,203.57,26.0]
[1753151402202,36.38,203.6,203.56,30.9123164]
[1753151402399,36.38,203.6,203.56,6.94057297]
[1753151402600,36.38,203.6,203.59,26.0]
[1753151402803,36.38,203.6,203.59,32.94057297]
[1753151402998,36.38,203.6,203.58,6.94057297]
[1753151403205,36.38,203.6,203.59,26.0]
[1753151403504,11.85023518,203.68,203.59,33.60057297]
[1753151403709,53.16468397,203.67,203.63,6.94057297]
[1753151403904,53.16468397,203.67,203.62,6.94057297]
[1753151404102,16.78468397,203.65,203.62,6.94057297]
[1753151404297,36.38,203.64,203.62,6.94057297]
[1753151404518,36.38,203.64,203.63,7.60057297]
[1753151405020,36.38,203.66,203.65,26.0]
[1753151405216,21.69321761,203.73,203.65,7.60057297]
[1753151405418,16.78468397,203.71,203.68,6.94057297]
[1753151405802,36.38,203.72,203.7,6.94057297]
[1753151406514,36.38,203.72,203.66,0.66]
[1753151406515,16.78468397,203.71,203.66,0.66]
[1753151406715,16.78468397,203.69,203.64,32.94057297]
[1753151406934,16.78468397,203.67,203.64,26.0]
[1753151407294,14.28468397,203.67,203.64,32.94057297]
[1753151407617,36.38,203.68,203.66,6.94057297]
[1753151407822,36.38,203.68,203.65,6.94057297]
[1753151407997,0.71,203.67,203.63,32.94057297]
[1753151408202,11.85095843,203.65,203.59,7.61057297]
[1753151408405,36.36,203.64,203.59,26.0]
[1753151408594,36.36,203.64,203.59,32.94057297]
[1753151409014,7.65057297,203.63,203.57,6.94057297]
[1753151409209,6.94057297,203.61,203.55,6.94057297]
[1753151409411,16.78468397,203.59,203.55,6.94057297]
[1753151409610,17.49468397,203.59,203.54,6.94057297]
[1753151410312,22.40654024,203.59,203.54,26.0]
[1753151410516,22.40654024,203.59,203.54,32.94057297]
[1753151411022,22.40654024,203.59,203.55,6.94057297]
[1753151411206,21.69654024,203.59,203.55,6.94057297]
[1753151411406,16.78468397,203.59,203.55,6.94057297]
[1753151411601,4.91112456,203.62,203.53,31.11324961]
[1753151411801,36.36,203.61,203.54,0.67]
[1753151412019,36.36,203.61,203.6,6.94057297]
[1753151412413,36.36,203.64,203.6,12.52216432]
[1753151412601,36.36,203.67,203.63,32.94057297]
[1753151412802,36.36,203.67,203.66,6.94057297]
[1753151413609,36.36,203.67,203.65,6.94057297]
[1753151413798,36.36,203.67,203.66,6.94057297]
[1753151414204,16.78468397,203.66,203.64,6.94057297]
[1753151415024,16.78468397,203.66,203.62,6.94057297]
[1753151415328,12.96927297,203.73,203.65,6.94057297]
[1753151415620,53.14468397,203.71,203.69,6.94057297]
[1753151417211,53.14468397,203.71,203.68,6.94057297]
[1753151418018,53.14468397,203.71,203.7,6.94057297]
[1753151418019,36.34,203.71,203.7,6.94057297]
[1753151418215,36.34,203.71,203.69,6.94057297]
[1753151418522,36.34,203.73,203.7,7.61057297]
[1753151418728,36.34,203.73,203.72,6.94057297]
[1753151419633,36.34,203.73,203.71,6.94057297]
[1753151420130,53.12468397,203.73,203.72,6.94057297]
[1753151420510,53.12468397,203.73,203.71,6.94057297]
[1753151420911,16.78468397,203.72,203.71,6.94057297]
[1753151421533,16.78468397,203.72,203.7,6.94057297]
[1753151422225,0.06,203.74,203.69,95.54057297]
[1753151422437,0.06,203.74,203.73,32.94057297]
[1753151422818,58.09290032,203.74,203.73,32.94057297]
[1753151423415,58.09290032,203.74,203.71,6.94057297]
[1753151423631,36.4,203.74,203.73,6.94057297]
[1753151423841,0.06,203.74,203.73,7.61057297]
[1753151424414,0.06,203.74,203.72,26.0]
[1753151424609,16.84468397,203.74,203.72,32.94057297]
[1753151424931,16.84468397,203.74,203.69,6.94057297]
[1753151425137,16.78468397,203.72,203.71,26.0]
[1753151425337,36.32,203.72,203.71,33.61057297]
[1753151425640,36.32,203.72,203.71,32.94057297]
[1753151426822,0.06,203.74,203.71,33.61057297]
[1753151427018,0.06,203.74,203.73,32.94057297]
[1753151427615,0.06,203.74,203.73,26.0]
[1753151427823,16.78468397,203.73,203.66,0.67]
[1753151428036,16.78468397,203.71,203.67,6.94057297]
[1753151428242,36.32,203.72,203.69,6.94057297]
[1753151428741,16.78468397,203.71,203.68,6.94057297]
[1753151428946,16.78468397,203.69,203.61,94.18131637]
[1753151429151,36.32,203.68,203.65,6.94057297]
[1753151429443,36.32,203.68,203.64,32.94057297]
[1753151429645,36.32,203.68,203.65,6.94057297]
[1753151429821,36.32,203.68,203.66,6.94057297]
[1753151430146,0.06,203.74,203.67,69.93057297]
[1753151430440,0.06,203.74,203.73,6.94057297]
[1753151430640,0.06,203.74,203.7,26.0]
[1753151430831,0.06,203.74,203.72,6.94057297]
[1753151431227,0.06,203.74,203.72,0.67]
[1753151431425,0.06,203.74,203.73,6.94057297]
[1753151432431,0.06,203.74,203.73,7.61057297]
[1753151432630,0.06,203.74,203.73,12.51903024]
[1753151433231,0.06,203.74,203.73,26.0]
[1753151433471,0.06,203.74,203.73,32.94057297]
[1753151433753,0.06,203.74,203.73,33.61057297]
[1753151433929,0.06,203.74,203.73,32.94057297]
[1753151436441,0.06,203.74,203.73,26.0]
[1753151436634,0.06,203.74,203.73,32.94057297]
[1753151436969,0.06,203.74,203.73,33.61057297]
[1753151437452,0.06,203.74,203.73,32.94057297]
[1753151437965,0.06,203.74,203.73,114.6]
[1753151438466,0.06,203.74,203.73,88.6]
[1753151438646,22.40290032,203.74,203.73,88.6]
[1753151438835,16.84468397,203.74,203.71,95.54057297]
[1753151439373,21.75294298,203.74,203.71,95.54057297]
[1753151439533,22.40294298,203.74,203.71,88.6]
[1753151439842,21.75294298,203.74,203.71,95.54057297]
[1753151440036,16.84468397,203.74,203.72,6.94057297]
[1753151440241,16.84468397,203.74,203.71,95.54057297]
[1753151441015,21.75291241,203.74,203.71,95.54057297]
[1753151441138,16.84468397,203.74,203.71,95.54057297]
[1753151441852,0.06,203.74,203.73,6.94057297]
[1753151442038,0.06,203.74,203.72,6.94057297]
[1753151442238,0.06,203.74,203.71,88.6]
[1753151442239,5.61827743,203.74,203.71,95.54057297]
[1753151442655,0.71,203.74,203.71,95.54057297]
[1753151442854,0.06,203.74,203.71,95.54057297]
[1753151443462,16.78468397,203.72,203.71,88.6]
[1753151443671,36.28,203.72,203.71,88.6]
[1753151444167,53.06468397,203.72,203.71,88.6]
[1753151444458,36.28,203.72,203.71,88.6]
[1753151445158,41.18869821,203.72,203.71,88.6]
[1753151445361,6.3867,203.74,203.71,32.94057297]
[1753151445543,0.06,203.74,203.73,6.94057297]
[1753151445744,0.06,203.74,203.73,7.61057297]
[1753151445964,36.34,203.74,203.72,6.94057297]
[1753151446156,36.34,203.74,203.67,4.90988259]
[1753151446157,17.43468397,203.73,203.69,6.94057297]
[1753151446365,0.65,203.73,203.67,26.67]
[1753151446657,36.34,203.74,203.67,31.57985282]
[1753151446862,41.24830141,203.74,203.67,31.57985282]
[1753151447055,36.34,203.74,203.67,31.57985282]
[1753151447251,41.24840284,203.74,203.67,31.57985282]
[1753151448449,17.43468397,203.73,203.62,0.67]
[1753151448644,24.37525694,203.73,203.67,6.94057297]
[1753151448851,16.78468397,203.68,203.63,6.94057297]
[1753151449046,36.91,203.67,203.62,6.94057297]
[1753151449246,0.65,203.66,203.62,6.94057297]
[1753151449549,36.26,203.67,203.62,6.94057297]
[1753151449942,0.65,203.66,203.61,6.94057297]
[1753151450168,16.78468397,203.64,203.6,6.94057297]
[1753151450362,41.17090398,203.63,203.6,6.94057297]
[1753151450573,41.17090398,203.63,203.59,6.97057297]
[1753151450759,41.17090398,203.63,203.59,0.03]
[1753151450760,36.26,203.63,203.59,0.03]
[1753151450962,36.26,203.63,203.6,6.94057297]
[1753151451653,41.82088532,203.63,203.59,26.03]
[1753151451841,0.65,203.62,203.59,32.97057297]
[1753151452049,0.65,203.62,203.59,26.03]
[1753151452556,0.65,203.65,203.61,6.94057297]
[1753151452753,36.26,203.64,203.6,6.94057297]
[1753151452955,36.91,203.64,203.59,32.97057297]
[1753151453154,16.78468397,203.63,203.59,32.97057297]
[1753151453745,17.43468397,203.63,203.59,6.97057297]
[1753151453941,16.78468397,203.61,203.59,0.03]
[1753151454166,0.65,203.62,203.59,0.03]
[1753151454167,53.04468397,203.6,203.59,0.03]
[1753151454470,36.26,203.6,203.59,6.97057297]
[1753151454969,36.26,203.6,203.59,26.03]
[1753151455157,36.26,203.6,203.59,32.97057297]
[1753151455554,36.26,203.6,203.59,26.03]
[1753151455761,36.26,203.6,203.59,32.97057297]
[1753151456471,21.6952804,203.65,203.59,32.97057297]
[1753151456656,16.78468397,203.63,203.6,6.94057297]
[1753151456859,17.43468397,203.63,203.59,6.97057297]
[1753151457268,16.78468397,203.63,203.59,6.97057297]
[1753151457475,0.65,203.62,203.59,6.97057297]
[1753151457653,36.26,203.61,203.59,0.03]
[1753151457968,36.91,203.61,203.59,0.03]
[1753151458173,17.43468397,203.6,203.59,0.03]
[1753151458548,29.28684829,203.6,203.59,0.03]
[1753151458770,36.26,203.61,203.59,0.03]
[1753151459165,36.91,203.61,203.59,0.03]
[1753151459559,16.78468397,203.6,203.59,0.03]
[1753151459762,24.37525694,203.6,203.59,0.03]
[1753151460167,25.98615694,203.6,203.59,0.03]
[1753151460378,32.36605694,203.6,203.55,0.03]
[1753151460555,28.63781343,203.56,203.55,0.03]
[1753151460763,64.89781343,203.56,203.55,0.03]
[1753151461071,16.78468397,203.55,203.53,0.2]
[1753151461264,16.78468397,203.51,203.5,0.1]
[1753151461465,53.04468397,203.51,203.5,0.1]
[1753151461675,53.69468397,203.51,203.5,0.1]
[1753151462174,7.9908,203.6,203.5,0.1]
[1753151462383,17.43468397,203.59,203.56,6.94057297]
[1753151462559,16.78468397,203.57,203.56,6.94057297]
[1753151462760,17.43468397,203.57,203.53,6.94057297]
[1753151462955,36.26,203.56,203.53,26.0]
[1753151463178,36.26,203.56,203.55,6.94057297]
[1753151463357,36.26,203.58,203.57,26.0]
[1753151463558,36.26,203.58,203.57,32.94057297]
[1753151463757,36.26,203.58,203.57,26.67]
[1753151463958,1.5372,203.65,203.57,33.61057297]
[1753151464170,1.5372,203.7,203.64,6.94057297]
[1753151464453,6.3462,203.71,203.69,6.94057297]
[1753151464763,6.3462,203.71,203.64,89.27]
[1753151464764,36.26,203.69,203.67,6.94057297]
[1753151465279,24.37525694,203.68,203.64,88.6]
[1753151465462,0.65,203.67,203.63,6.94057297]
[1753151465663,53.69468397,203.66,203.61,6.94057297]
[1753151465879,53.69468397,203.66,203.63,6.94057297]
[1753151466070,53.04468397,203.66,203.64,6.94057297]
[1753151466376,53.04468397,203.66,203.61,6.94057297]
[1753151466587,16.78468397,203.63,203.58,6.94057297]
[1753151466762,36.26,203.62,203.58,6.94057297]
[1753151466964,36.26,203.62,203.59,6.94057297]
[1753151467172,36.26,203.62,203.6,6.94057297]
[1753151468272,36.26,203.62,203.59,6.94057297]
[1753151468470,36.26,203.62,203.6,6.94057297]
[1753151468665,36.26,203.62,203.61,6.94057297]
[1753151468880,16.78468397,203.66,203.61,6.94057297]
[1753151469180,36.26,203.65,203.64,32.94057297]
[1753151469872,36.26,203.65,203.64,33.64057297]
[1753151470383,36.26,203.65,203.64,38.55119956]
[1753151471458,36.26,203.65,203.64,32.94057297]
[1753151471887,36.26,203.65,203.64,37.85119956]
[1753151472071,36.26,203.65,203.64,6.94057297]
[1753151472385,36.98,203.65,203.62,6.94057297]
[1753151472562,17.50468397,203.64,203.6,6.94057297]
[1753151473887,18.42908397,203.62,203.54,4.91299994]
[1753151474086,36.96,203.61,203.56,6.94057297]
[1753151474390,0.72,203.6,203.56,6.94057297]
[1753151474769,17.50468397,203.59,203.55,6.94057297]
[1753151475092,36.24,203.58,203.55,0.7]
[1753151475285,36.24,203.58,203.57,6.94057297]
[1753151475593,36.24,203.58,203.57,95.54057297]
[1753151477071,36.24,203.58,203.57,88.6]
[1753151477968,36.24,203.58,203.57,95.54057297]
[1753151479367,36.24,203.58,203.57,6.94057297]
[1753151480181,36.24,203.58,203.57,11.85288814]
[1753151480586,36.24,203.58,203.57,6.94057297]
[1753151481096,36.24,203.58,203.57,11.85288814]
[1753151481315,36.24,203.58,203.55,114.6]
[1753151481316,53.02468397,203.58,203.55,114.6]
[1753151481491,53.74468397,203.58,203.55,121.54057297]
[1753151481999,53.02468397,203.58,203.56,6.94057297]
[1753151482373,17.50468397,203.57,203.51,88.6]
[1753151482578,17.50468397,203.56,203.51,88.6]
[1753151482800,6.94057297,203.57,203.51,88.6]
[1753151482801,16.78468397,203.54,203.51,88.6]
[1753151483187,16.78468397,203.52,203.51,88.6]
[1753151483389,53.72468397,203.52,203.5,88.7]
[1753151483677,17.50468397,203.51,203.5,0.1]
[1753151484091,22.41844742,203.51,203.5,0.1]
[1753151484598,16.78468397,203.57,203.5,127.25454252]
[1753151484782,16.78468397,203.57,203.56,6.94057297]
[1753151484990,53.00468397,203.57,203.56,6.94057297]
[1753151485384,36.22,203.57,203.56,6.94057297]
[1753151486028,16.78468397,203.56,203.53,30.91305938]
[1753151486202,16.78468397,203.56,203.55,6.94057297]
[1753151486408,36.22,203.57,203.55,6.94057297]
[1753151486711,36.22,203.57,203.56,6.94057297]
[1753151487081,36.22,203.57,203.55,88.6]
[1753151487293,36.22,203.57,203.56,6.94057297]
[1753151487689,16.78468397,203.56,203.55,95.54057297]
[1753151487889,16.78468397,203.56,203.55,88.6]
[1753151488505,16.78468397,203.56,203.55,95.54057297]
[1753151488701,36.94,203.57,203.55,95.54057297]
[1753151488702,36.22,203.57,203.55,95.54057297]
[1753151488893,36.22,203.57,203.56,6.94057297]
[1753151489712,0.06,203.6,203.58,88.6]
[1753151489891,0.06,203.6,203.59,7.64057297]
[1753151490085,6.5103,203.71,203.62,26.0]